bitfinex-derivatives/quotes_BTCF0:USTF0_20241010
["timestamp","ask_amount","ask_price","bid_price","bid_amount"]
[1728587403621,0.00252425,59444.0,59441.0,0.084219]
[1728587403825,0.00252425,59444.0,59443.0,0.274219]
[1728587404018,0.084201,59456.0,59455.0,0.084202]
[1728587405719,0.084201,59456.0,59455.0,0.15034456]
[1728587405926,0.096201,59456.0,59455.0,0.085202]
[1728587406533,0.109201,59456.0,59455.0,0.15131345]
[1728587406825,0.025,59456.0,59455.0,0.28563003]
[1728587407031,0.084183,59469.0,59468.0,0.084182]
[1728587407229,0.084183,59469.0,59468.0,0.444982]
[1728587408032,0.098183,59469.0,59468.0,0.445982]
[1728587408232,0.098183,59469.0,59468.0,0.49549991]
[1728587408436,0.098183,59469.0,59468.0,0.085182]
[1728587408817,0.084183,59469.0,59468.0,0.085182]
[1728587409022,0.006,59469.0,59468.0,0.275182]
[1728587409233,0.006,59469.0,59468.0,0.38495922]
[1728587409426,0.006,59469.0,59468.0,0.335482]
[1728587409621,0.0107364,59479.0,59468.0,0.335482]
[1728587409622,0.0107364,59479.0,59468.0,0.41129075]
[1728587409819,0.0949044,59479.0,59478.0,0.084169]
[1728587410019,0.55168,59481.0,59478.0,0.084169]
[1728587410020,0.00088,59481.0,59480.0,0.084166]
[1728587410224,0.00088,59481.0,59480.0,0.444966]
[1728587410434,0.085045,59481.0,59480.0,0.444966]
[1728587410632,0.084165,59481.0,59480.0,0.444966]
[1728587410832,0.274165,59481.0,59480.0,0.444966]
[1728587411130,0.274165,59481.0,59480.0,0.084166]
[1728587411333,0.278165,59481.0,59480.0,0.085166]
[1728587412229,0.289165,59481.0,59480.0,0.002]
[1728587412542,0.289165,59481.0,59468.0,0.4862]
[1728587412543,0.084182,59469.0,59468.0,0.3608]
[1728587412833,0.274182,59469.0,59468.0,0.3608]
[1728587413224,0.084182,59469.0,59468.0,0.3608]
[1728587413834,0.084182,59469.0,59468.0,0.3668]
[1728587414027,0.084182,59469.0,59468.0,0.006]
[1728587415132,0.084182,59469.0,59468.0,0.003]
[1728587415133,1.188662,59469.0,59468.0,0.003]
[1728587415433,1.188662,59469.0,59455.0,0.45568775]
[1728587415434,0.0842,59456.0,59455.0,0.45568775]
[1728587415737,0.2742,59456.0,59455.0,0.45568775]
[1728587416740,0.2742,59456.0,59455.0,0.46068775]
[1728587416925,0.2742,59456.0,59455.0,0.3608]
[1728587417123,0.2752,59456.0,59455.0,0.011]
[1728587417329,1.48556,59456.0,59443.0,0.36332309]
[1728587417527,0.084217,59444.0,59443.0,0.00252309]
[1728587417742,0.274217,59444.0,59443.0,0.00252309]
[1728587419234,0.274217,59444.0,59443.0,0.00552309]
[1728587419639,0.274217,59444.0,59443.0,0.00252309]
[1728587419934,0.274217,59444.0,59443.0,0.00852309]
[1728587421346,0.08423,59435.0,59434.0,0.04942102]
[1728587421638,0.084226,59439.0,59429.0,0.04942102]
[1728587421639,0.084232,59434.0,59429.0,0.04942102]
[1728587421838,0.274237,59430.0,59429.0,0.084238]
[1728587423046,0.280237,59430.0,59429.0,0.084238]
[1728587423743,0.283237,59430.0,59429.0,0.084238]
[1728587424135,0.283237,59430.0,59424.0,0.01086061]
[1728587424136,0.084242,59427.0,59424.0,0.06608526]
[1728587424336,0.19,59425.0,59420.0,0.00252438]
[1728587424534,0.084242,59427.0,59420.0,0.00252438]
[1728587424535,0.19,59421.0,59420.0,0.00252438]
[1728587425042,0.27425,59421.0,59420.0,0.00252438]
[1728587425739,0.27525,59421.0,59420.0,0.00252438]
[1728587427640,0.27525,59421.0,59420.0,0.01452438]
[1728587428236,0.27525,59421.0,59420.0,0.012]
[1728587428443,0.27525,59421.0,59420.0,0.096251]
[1728587429635,0.27525,59421.0,59420.0,0.012]
[1728587429842,0.27525,59421.0,59420.0,0.096251]
[1728587430941,0.13199753,59424.0,59420.0,0.012]
[1728587431246,0.084249,59422.0,59421.0,0.084247]
[1728587431444,0.084249,59422.0,59421.0,0.146047]
[1728587431750,0.13199753,59424.0,59423.0,0.084247]
[1728587431949,0.21624353,59424.0,59423.0,0.084247]
[1728587432347,0.084249,59422.0,59421.0,0.0618]
[1728587432949,0.13399753,59424.0,59423.0,0.084247]
[1728587433148,0.13299753,59424.0,59423.0,0.084247]
[1728587433453,0.21624353,59424.0,59423.0,0.084247]
[1728587434048,0.17410316,59424.0,59423.0,0.084247]
[1728587434342,0.17410316,59424.0,59423.0,0.094247]
[1728587434343,0.274246,59424.0,59423.0,0.094247]
[1728587434944,0.275246,59424.0,59423.0,0.094247]
[1728587435851,0.191,59424.0,59423.0,0.094247]
[1728587436649,0.275246,59424.0,59423.0,0.094247]
[1728587437146,0.19,59436.0,59423.0,1.005847]
[1728587437352,0.19,59436.0,59435.0,0.08423]
[1728587437944,0.274229,59436.0,59435.0,0.08423]
[1728587438553,0.279229,59436.0,59435.0,0.08423]
[1728587438752,0.084234,59432.0,59431.0,0.445035]
[1728587438944,0.084234,59432.0,59431.0,0.45579821]
[1728587439857,0.084239,59429.0,59428.0,0.04945862]
[1728587440051,0.084242,59427.0,59424.0,0.13370462]
[1728587440244,0.19,59425.0,59423.0,0.3608]
[1728587440452,0.084246,59424.0,59423.0,0.3608]
[1728587441646,0.085246,59424.0,59423.0,0.3608]
[1728587442450,0.375246,59424.0,59423.0,0.41025862]
[1728587442643,0.375246,59424.0,59420.0,0.04003758]
[1728587442644,1.49073239,59424.0,59420.0,0.04003758]
[1728587442849,0.3608,59421.0,59407.0,0.0025249]
[1728587443043,0.374268,59408.0,59407.0,0.0025249]
[1728587443549,0.735068,59408.0,59407.0,0.0025249]
[1728587443860,0.374268,59408.0,59407.0,0.0025249]
[1728587444749,0.378268,59408.0,59407.0,0.0025249]
[1728587446455,0.378268,59408.0,59407.0,0.0867949]
[1728587447450,0.378268,59408.0,59407.0,0.29681988]
[1728587447645,0.380268,59408.0,59407.0,0.29681988]
[1728587448153,0.380268,59408.0,59407.0,0.2142133]
[1728587449557,0.380268,59408.0,59407.0,0.2140933]
[1728587450464,0.380268,59408.0,59407.0,0.21401005]
[1728587451058,0.380268,59408.0,59407.0,0.31299979]
[1728587452059,0.380268,59408.0,59407.0,0.31059489]
[1728587452060,0.090268,59408.0,59407.0,0.31059489]
[1728587452359,0.380268,59408.0,59407.0,0.12733515]
[1728587453450,0.6528,59408.0,59407.0,0.12733515]
[1728587453652,0.737068,59408.0,59407.0,0.08295261]
[1728587453848,0.08427,59407.0,59406.0,0.08295261]
[1728587454063,0.47427,59407.0,59406.0,0.08295261]
[1728587454264,1.57927,59407.0,59406.0,0.08295261]
[1728587455152,0.88227,59407.0,59406.0,0.08295261]
[1728587455355,0.37727,59407.0,59406.0,0.2101438]
[1728587455654,0.37727,59407.0,59406.0,0.21010149]
[1728587456555,0.37827,59407.0,59406.0,0.21010149]
[1728587457354,0.37827,59407.0,59406.0,0.21009629]
[1728587457658,0.37827,59407.0,59406.0,0.21007485]
[1728587460361,0.37827,59407.0,59401.0,0.09949924]
[1728587460362,0.084271,59406.0,59405.0,0.08295261]
[1728587460557,0.374271,59406.0,59405.0,0.21000954]
[1728587460762,0.374271,59406.0,59405.0,0.12705693]
[1728587460962,0.084264,59411.0,59410.0,0.084265]
[1728587461158,0.084264,59411.0,59410.0,0.16706428]
[1728587461368,0.084264,59411.0,59410.0,0.29387878]
[1728587461672,0.084264,59411.0,59410.0,0.20959277]
[1728587461968,0.084264,59411.0,59410.0,0.08277827]
[1728587462165,0.084264,59411.0,59410.0,0.12634365]
[1728587462572,0.274264,59411.0,59410.0,0.12634365]
[1728587463059,0.279264,59411.0,59410.0,0.21060965]
[1728587463455,0.279264,59411.0,59410.0,0.31010889]
[1728587463860,0.011,59411.0,59410.0,0.31110889]
[1728587464065,0.011,59411.0,59410.0,0.21160965]
[1728587464264,0.00252517,59422.0,59410.0,0.21160965]
[1728587464265,0.08677417,59422.0,59417.0,0.084256]
[1728587464567,0.08677417,59422.0,59421.0,0.44505]
[1728587464865,0.08677417,59422.0,59421.0,0.08271251]
[1728587465057,0.08677417,59422.0,59421.0,0.20859671]
[1728587465256,0.08425,59421.0,59420.0,0.084251]
[1728587465466,0.27425,59421.0,59420.0,0.21001442]
[1728587466266,0.19,59421.0,59420.0,0.21015868]
[1728587467066,0.00252517,59422.0,59421.0,0.08425]
[1728587467266,0.084241,59428.0,59427.0,0.084242]
[1728587467482,0.635041,59428.0,59427.0,0.12554656]
[1728587467669,0.274241,59428.0,59427.0,0.12554656]
[1728587467871,0.274241,59428.0,59427.0,0.20978856]
[1728587468462,0.274241,59428.0,59427.0,0.21478856]
[1728587469169,0.19,59431.0,59427.0,0.13054656]
[1728587469363,0.274236,59431.0,59430.0,0.084236]
[1728587469563,0.274236,59431.0,59430.0,0.12554656]
[1728587469760,0.084236,59431.0,59430.0,0.12554656]
[1728587470173,0.084236,59431.0,59430.0,0.20978356]
[1728587470475,0.084236,59431.0,59430.0,0.001]
[1728587470676,0.084236,59431.0,59430.0,0.003]
[1728587471467,0.084236,59431.0,59430.0,0.087237]
[1728587471673,0.084236,59431.0,59430.0,0.003]
[1728587472975,0.084236,59431.0,59430.0,0.087237]
[1728587478986,0.084236,59431.0,59430.0,0.09763537]
[1728587479781,0.04210027,59431.0,59430.0,0.09763537]
[1728587479979,0.04210027,59431.0,59430.0,0.087237]
[1728587480387,0.04210027,59431.0,59430.0,0.003]
[1728587481379,0.19,59420.0,59419.0,0.0649]
[1728587481584,0.274251,59420.0,59419.0,0.0649]
[1728587481788,0.084253,59419.0,59413.0,0.00252468]
[1728587482088,0.46426,59414.0,59413.0,0.00252468]
[1728587483096,0.46426,59414.0,59413.0,0.00952468]
[1728587483299,0.46426,59414.0,59413.0,0.02252468]
[1728587484101,0.46426,59414.0,59413.0,0.01552468]
[1728587484296,0.46526,59414.0,59413.0,0.02652468]
[1728587485505,0.46526,59414.0,59413.0,0.024]
[1728587490093,0.82606,59414.0,59413.0,0.024]
[1728587490811,0.44606,59414.0,59413.0,0.108261]
[1728587491001,0.63606,59414.0,59413.0,0.108261]
[1728587492499,0.27526,59414.0,59413.0,0.108261]
[1728587493605,0.191,59414.0,59413.0,0.108261]
[1728587493915,0.00088,59418.0,59417.0,0.084256]
[1728587494210,0.274254,59418.0,59417.0,0.084256]
[1728587495113,0.274254,59418.0,59417.0,0.093256]
[1728587495410,0.635054,59418.0,59417.0,0.102256]
[1728587495612,0.636054,59418.0,59417.0,0.102256]
[1728587496309,0.275254,59418.0,59417.0,0.102256]
[1728587497400,0.191,59418.0,59417.0,0.102256]
[1728587497809,0.275254,59418.0,59417.0,0.102256]
[1728587498013,0.275254,59418.0,59417.0,0.3506349]
[1728587498307,0.275254,59418.0,59417.0,0.35064766]
[1728587498514,0.275254,59418.0,59417.0,0.35065269]
[1728587498806,0.275254,59418.0,59417.0,0.224256]
[1728587504208,0.465254,59418.0,59417.0,0.018]
[1728587504411,0.465254,59418.0,59413.0,0.3608]
[1728587504412,0.465254,59418.0,59414.0,0.0827733]
[1728587504614,0.084259,59415.0,59414.0,0.1670323]
[1728587504802,0.084259,59415.0,59414.0,0.20932963]
[1728587505003,0.08426,59414.0,59412.0,0.0827733]
[1728587505208,0.274261,59413.0,59412.0,0.1670363]
[1728587506314,0.274261,59413.0,59412.0,0.084263]
[1728587507510,0.275261,59413.0,59412.0,0.087263]
[1728587507701,0.275261,59413.0,59412.0,0.096263]
[1728587508017,0.086261,59413.0,59412.0,0.096263]
[1728587508214,0.086261,59413.0,59412.0,0.1790363]
[1728587508604,0.086261,59413.0,59412.0,0.30460101]
[1728587509000,0.086261,59413.0,59412.0,0.22182771]
[1728587512401,0.086261,59413.0,59412.0,0.13756471]
[1728587514715,0.447061,59413.0,59412.0,0.13756471]
[1728587514910,0.447061,59413.0,59401.0,0.11589299]
[1728587514911,0.084275,59404.0,59401.0,0.11589299]
[1728587515219,0.08428,59400.0,59399.0,0.36332486]
[1728587517118,0.08528,59400.0,59399.0,0.36932486]
[1728587517320,0.08528,59400.0,59399.0,0.45360586]
[1728587518111,0.08628,59400.0,59399.0,0.45360586]
[1728587520313,0.08628,59400.0,59399.0,0.17576711]
[1728587520521,0.002,59400.0,59399.0,0.17576711]
[1728587520816,0.002,59400.0,59399.0,0.09280586]
[1728587521520,0.08628,59400.0,59399.0,0.09280586]
[1728587523421,0.002,59400.0,59399.0,0.09280586]
[1728587523929,0.084266,59410.0,59407.0,0.084269]
[1728587524114,0.19,59408.0,59407.0,0.084269]
[1728587524514,0.19,59408.0,59407.0,0.15063248]
[1728587524821,0.14784682,59408.0,59406.0,0.06636348]
[1728587525021,0.27427,59407.0,59406.0,0.06636348]
[1728587525527,0.27427,59407.0,59405.0,0.15063448]
[1728587525729,0.084271,59406.0,59405.0,0.15063448]
[1728587526128,0.084271,59406.0,59405.0,0.1506375]
[1728587526629,0.084271,59406.0,59405.0,0.15064725]
[1728587526830,0.085271,59406.0,59405.0,0.084271]
[1728587527021,0.084277,59403.0,59402.0,0.084276]
[1728587527329,0.274277,59403.0,59402.0,0.084276]
[1728587529117,0.274277,59403.0,59402.0,0.086276]
[1728587529322,0.274277,59403.0,59402.0,0.16918927]
[1728587529629,0.274277,59403.0,59402.0,0.003]
[1728587534424,0.2849559,59403.0,59402.0,0.003]
[1728587535435,0.084277,59403.0,59402.0,0.003]
[1728587535734,0.274277,59403.0,59402.0,0.087277]
[1728587536232,0.084277,59403.0,59402.0,0.087277]
[1728587536427,0.274277,59403.0,59402.0,0.17027538]
[1728587537231,0.274277,59403.0,59402.0,0.087277]
[1728587537433,0.274277,59403.0,59402.0,0.17027538]
[1728587537833,0.274277,59403.0,59402.0,0.087277]
[1728587538633,0.274277,59403.0,59402.0,0.003]
[1728587539733,0.274277,59403.0,59395.0,0.09969281]
[1728587539734,0.38,59403.0,59401.0,0.06639224]
[1728587539933,0.08429,59393.0,59391.0,0.269692]
[1728587540234,0.19,59393.0,59391.0,0.269692]
[1728587540426,0.084293,59391.0,59385.0,0.11024811]
[1728587540733,0.084298,59387.0,59386.0,0.12153549]
[1728587541533,0.084298,59387.0,59386.0,0.20583549]
[1728587541731,0.085298,59387.0,59386.0,0.21383549]
[1728587542132,0.085298,59387.0,59386.0,0.21400696]
[1728587543025,0.275298,59387.0,59386.0,0.21400696]
[1728587543625,0.276298,59387.0,59386.0,0.21400696]
[1728587544229,0.276298,59387.0,59386.0,0.57480696]
[1728587546837,0.086298,59387.0,59386.0,0.57480696]
[1728587547635,0.002,59387.0,59386.0,0.57480696]
[1728587547937,0.086298,59387.0,59386.0,0.57480696]
[1728587548941,0.002,59387.0,59386.0,0.57480696]
[1728587549541,0.19,59396.0,59386.0,0.57480696]
[1728587549542,0.08429,59393.0,59392.0,0.084291]
[1728587549947,0.274286,59396.0,59395.0,0.084287]
[1728587550145,0.084285,59399.0,59398.0,0.084281]
[1728587551344,0.089285,59399.0,59398.0,0.084281]
[1728587552447,0.009,59399.0,59398.0,0.20531941]
[1728587552744,0.00252591,59405.0,59404.0,0.084274]
[1728587552949,0.00252591,59405.0,59404.0,0.56611241]
[1728587553746,0.084262,59413.0,59404.0,0.48183841]
[1728587553747,0.19,59406.0,59404.0,0.48183841]
[1728587553944,0.274271,59406.0,59405.0,0.12103841]
[1728587554144,0.084273,59405.0,59404.0,0.3728]
[1728587554949,0.084273,59405.0,59404.0,0.012]
[1728587555746,0.087273,59405.0,59404.0,0.002]
[1728587556345,0.084276,59403.0,59402.0,0.084276]
[1728587556545,0.084283,59398.0,59397.0,0.446123]
[1728587556852,0.084283,59398.0,59397.0,0.48127995]
[1728587557148,0.084283,59398.0,59397.0,0.3608]
[1728587557452,0.084283,59398.0,59397.0,0.445084]
[1728587559046,0.084283,59398.0,59397.0,0.447084]
[1728587559447,0.087283,59398.0,59397.0,0.447084]
[1728587559652,0.090283,59398.0,59397.0,0.445084]
[1728587565750,0.280283,59398.0,59397.0,0.445084]
[1728587569653,0.280283,59398.0,59397.0,0.445044]
[1728587569861,0.23812571,59398.0,59397.0,0.445044]
[1728587570863,0.04812571,59398.0,59397.0,0.445044]
[1728587571761,0.04812571,59398.0,59397.0,0.52796441]
[1728587571955,0.04812571,59398.0,59397.0,0.445044]
[1728587572361,0.04812571,59398.0,59397.0,0.52796441]
[1728587573362,0.04812571,59398.0,59397.0,0.64850284]
[1728587573554,0.04812571,59398.0,59397.0,0.56558243]
[1728587573756,0.04812571,59398.0,59397.0,0.64860311]
[1728587574257,0.04812571,59398.0,59397.0,0.56558243]
[1728587575354,0.04812571,59398.0,59397.0,0.64867847]
[1728587576258,0.04812571,59398.0,59397.0,0.64882185]
[1728587576458,0.17812571,59398.0,59397.0,0.56572581]
[1728587580261,0.17812571,59398.0,59397.0,0.20496581]
[1728587583459,0.04812571,59398.0,59397.0,0.3044311]
[1728587583763,0.04812571,59398.0,59397.0,0.20496581]
[1728587584265,0.04812571,59398.0,59397.0,0.3044311]
[1728587584469,0.04812571,59398.0,59397.0,0.20496581]
[1728587584866,0.66892571,59398.0,59396.0,0.08323418]
[1728587585067,0.084288,59394.0,59393.0,0.08323418]
[1728587585365,0.084288,59394.0,59390.0,0.08323418]
[1728587585366,0.084293,59391.0,59390.0,0.08323418]
[1728587585571,0.705093,59391.0,59390.0,0.08323418]
[1728587585871,0.6208,59391.0,59389.0,0.08323418]
[1728587586059,0.214294,59390.0,59389.0,0.08323418]
[1728587586363,0.214294,59390.0,59389.0,0.08320529]
[1728587586756,0.214294,59390.0,59388.0,0.16750129]
[1728587586961,0.084295,59389.0,59388.0,0.16750129]
[1728587587161,0.084295,59389.0,59388.0,0.084296]
[1728587587468,0.084297,59388.0,59387.0,0.08319468]
[1728587587660,0.084298,59387.0,59386.0,0.084299]
[1728587587856,0.214298,59387.0,59386.0,0.084299]
[1728587588369,0.214298,59387.0,59386.0,0.16743999]
[1728587588769,0.216298,59387.0,59386.0,0.18143999]
[1728587589975,0.3608,59398.0,59386.0,0.3748]
[1728587590163,0.575083,59398.0,59397.0,0.084284]
[1728587590973,0.214283,59398.0,59397.0,0.084284]
[1728587591158,0.215283,59398.0,59397.0,0.084284]
[1728587591470,0.218283,59398.0,59397.0,0.084284]
[1728587591970,0.220283,59398.0,59397.0,0.084284]
[1728587592465,0.280283,59398.0,59397.0,0.084284]
[1728587592664,0.280283,59398.0,59393.0,0.0830901]
[1728587592871,0.08429,59393.0,59392.0,0.0830901]
[1728587593071,0.08429,59393.0,59392.0,0.1673811]
[1728587593972,0.08429,59393.0,59392.0,0.084291]
[1728587594372,0.08429,59393.0,59392.0,0.17028115]
[1728587594771,0.27429,59393.0,59392.0,0.17328115]
[1728587595573,0.084288,59395.0,59394.0,0.084287]
[1728587595873,0.084288,59395.0,59394.0,0.16727264]
[1728587596068,0.084288,59395.0,59394.0,0.445087]
[1728587596574,0.084282,59401.0,59400.0,0.084278]
[1728587597479,0.274282,59401.0,59400.0,0.084278]
[1728587597664,0.274282,59401.0,59400.0,0.149678]
[1728587597865,0.286282,59401.0,59400.0,0.151678]
[1728587599173,0.286282,59401.0,59400.0,0.23464466]
[1728587599374,0.012,59401.0,59400.0,0.151678]
[1728587599577,0.012,59401.0,59400.0,0.23462667]
[1728587599770,0.012,59401.0,59400.0,0.1624373]
[1728587601069,0.096278,59401.0,59400.0,0.1624373]
[1728587601378,0.012,59401.0,59400.0,0.1624373]
[1728587603565,0.096278,59401.0,59400.0,0.1624373]
[1728587605273,0.012,59401.0,59400.0,0.28287172]
[1728587605782,0.096278,59401.0,59400.0,0.28287172]
[1728587606267,0.012,59401.0,59400.0,0.36592419]
[1728587606469,0.084277,59403.0,59402.0,0.084277]
[1728587606669,0.084274,59405.0,59402.0,0.12027685]
[1728587606864,0.084274,59405.0,59404.0,0.084274]
[1728587607880,0.085274,59405.0,59404.0,0.084274]
[1728587608078,0.086274,59405.0,59404.0,0.091274]
[1728587608376,0.002,59405.0,59404.0,0.091274]
[1728587609374,0.002,59405.0,59404.0,0.102274]
[1728587610074,0.002,59405.0,59404.0,0.18531583]
[1728587610279,0.002,59405.0,59404.0,0.102274]
[1728587610485,0.002,59405.0,59404.0,0.463074]
[1728587610683,0.002,59405.0,59404.0,0.54611583]
[1728587610880,0.19,59415.0,59404.0,0.54611583]
[1728587611069,0.19,59415.0,59412.0,0.08426]
[1728587611070,0.084262,59413.0,59412.0,0.08426]
[1728587611269,0.19,59415.0,59412.0,0.08426]
[1728587611472,0.00252517,59418.0,59414.0,0.15062617]
[1728587611678,0.08678017,59418.0,59417.0,0.15062217]
[1728587611880,0.084255,59418.0,59417.0,0.15062217]
[1728587612078,0.084255,59418.0,59417.0,0.084256]
[1728587612379,0.084255,59418.0,59417.0,0.15058166]
[1728587612680,0.274247,59423.0,59417.0,0.15058166]
[1728587612681,0.084253,59421.0,59420.0,0.084247]
[1728587613673,0.084253,59421.0,59420.0,0.15250588]
[1728587614384,0.084253,59421.0,59420.0,0.447047]
[1728587614784,0.084247,59424.0,59423.0,0.084247]
[1728587614981,0.084244,59426.0,59425.0,0.08424]
[1728587615288,0.084237,59430.0,59429.0,0.084239]
[1728587615979,0.3608,59432.0,59431.0,0.084236]
[1728587616180,0.084233,59434.0,59432.0,0.084234]
[1728587616886,0.19,59438.0,59432.0,0.084234]
[1728587616887,0.08675764,59433.0,59432.0,0.084234]
[1728587617277,0.00252464,59433.0,59432.0,0.084234]
[1728587617884,0.08675764,59433.0,59432.0,0.084234]
[1728587618080,0.08775764,59433.0,59432.0,0.084234]
[1728587619178,0.00352464,59433.0,59432.0,0.084234]
[1728587620178,0.084227,59437.0,59432.0,0.084234]
[1728587620379,0.084227,59437.0,59436.0,0.084229]
[1728587621777,0.089227,59437.0,59436.0,0.084229]
[1728587625581,0.084229,59436.0,59433.0,0.04967089]
[1728587625784,0.339329,59436.0,59430.0,0.04967089]
[1728587626082,0.339329,59436.0,59429.0,0.3608]
[1728587626083,0.084237,59430.0,59429.0,0.41047089]
[1728587626278,0.084237,59430.0,59429.0,0.3608]
[1728587627174,0.084237,59430.0,59429.0,0.445039]
[1728587627376,0.19,59431.0,59429.0,0.445039]
[1728587627377,0.0641,59435.0,59429.0,0.49470989]
[1728587627683,0.084237,59430.0,59429.0,0.49570989]
[1728587627986,0.084237,59430.0,59429.0,0.448039]
[1728587628487,0.084237,59430.0,59429.0,0.446039]
[1728587628989,0.084237,59430.0,59429.0,0.447039]
[1728587629395,0.084237,59430.0,59429.0,0.49670989]
[1728587629890,0.084237,59430.0,59429.0,0.49657508]
[1728587630082,0.084236,59433.0,59432.0,0.084233]
[1728587630986,0.084236,59433.0,59432.0,0.13376548]
[1728587631177,0.084236,59433.0,59432.0,0.084233]
[1728587631682,0.085236,59433.0,59432.0,0.084233]
[1728587633284,0.085236,59433.0,59432.0,0.13376548]
[1728587634289,0.001,59433.0,59432.0,0.084233]
[1728587634485,0.085233,59433.0,59432.0,0.084233]
[1728587635695,0.275233,59433.0,59432.0,0.084233]
[1728587636287,0.275233,59433.0,59432.0,0.15049188]
[1728587636595,0.085233,59433.0,59432.0,0.15049188]
[1728587637184,0.085233,59433.0,59432.0,0.084233]
[1728587639388,0.085233,59433.0,59432.0,0.16722625]
[1728587639389,0.215233,59433.0,59432.0,0.16722625]
[1728587639592,0.001,59433.0,59432.0,0.77972146]
[1728587639786,0.001,59433.0,59432.0,0.69672821]
[1728587639986,0.13,59442.0,59432.0,0.79614864]
[1728587640189,0.21422,59442.0,59441.0,0.084222]
[1728587640389,0.08422,59442.0,59441.0,0.084222]
[1728587641196,0.09522,59442.0,59441.0,0.084222]
[1728587641591,0.09522,59442.0,59441.0,0.16707076]
[1728587642104,0.09522,59442.0,59441.0,0.56770532]
[1728587642396,0.09522,59442.0,59441.0,0.71254545]
[1728587642984,0.011,59442.0,59441.0,0.71254545]
[1728587643787,0.011,59442.0,59441.0,0.56761329]
[1728587643991,0.011,59442.0,59441.0,0.71262032]
[1728587644193,0.09522,59442.0,59441.0,0.71362032]
[1728587644388,0.09522,59442.0,59441.0,0.6516489]
[1728587644596,0.09522,59442.0,59441.0,0.53005761]
[1728587645194,0.09522,59442.0,59441.0,0.65169969]
[1728587645390,0.09522,59442.0,59441.0,0.53005761]
[1728587646192,0.09522,59442.0,59441.0,0.65167636]
[1728587646403,0.09522,59442.0,59441.0,0.447022]
[1728587649508,0.011,59442.0,59441.0,0.447022]
[1728587650095,0.011,59442.0,59441.0,0.53005761]
[1728587650395,0.011,59442.0,59441.0,0.65244531]
[1728587650706,0.011,59442.0,59441.0,0.53005761]
[1728587651202,0.011,59442.0,59441.0,0.447022]
[1728587652409,0.011,59442.0,59441.0,0.6690875]
[1728587652705,0.28522,59442.0,59441.0,0.5848655]
[1728587652911,0.28522,59442.0,59441.0,0.12442276]
[1728587653499,0.28522,59442.0,59441.0,0.3082875]
[1728587653699,0.09522,59442.0,59441.0,0.3082875]
[1728587653902,0.28522,59442.0,59441.0,0.2240655]
[1728587654204,0.28522,59442.0,59441.0,0.12442276]
[1728587655709,0.28522,59442.0,59441.0,0.20864476]
[1728587655905,0.28522,59442.0,59441.0,0.12442276]
[1728587656313,0.28522,59442.0,59441.0,0.12456147]
[1728587660012,0.09522,59442.0,59441.0,0.20878347]
[1728587660311,0.03624198,59442.0,59441.0,0.20878347]
[1728587662813,0.03624198,59442.0,59441.0,0.2918382]
[1728587663004,0.03624198,59442.0,59441.0,0.08505473]
[1728587663206,0.03624198,59442.0,59441.0,0.002]
[1728587665212,0.13,59444.0,59441.0,0.086222]
[1728587665411,0.08422,59442.0,59441.0,0.086222]
[1728587665915,0.08422,59442.0,59441.0,0.002]
[1728587666111,0.08422,59442.0,59441.0,0.086222]
[1728587667617,0.08422,59442.0,59441.0,0.001]
[1728587667817,0.08422,59442.0,59441.0,0.002]
[1728587668711,0.09468996,59442.0,59441.0,0.002]
[1728587673316,0.09468996,59442.0,59441.0,0.06856004]
[1728587674220,0.09468996,59442.0,59441.0,0.002]
[1728587675222,1.32936996,59442.0,59441.0,0.002]
[1728587677528,1.32936996,59442.0,59441.0,0.05189711]
[1728587678823,1.69016996,59442.0,59441.0,0.05189711]
[1728587679616,1.09016996,59442.0,59441.0,0.05189711]
[1728587679921,1.69016996,59442.0,59441.0,0.05189711]
[1728587681424,1.69016996,59442.0,59441.0,0.002]
[1728587681622,1.69016996,59442.0,59441.0,0.05189711]
[1728587682319,1.69016996,59442.0,59441.0,0.002]
[1728587685927,1.82016996,59442.0,59441.0,0.002]
[1728587686330,1.45936996,59442.0,59441.0,0.002]
[1728587686533,1.82016996,59442.0,59441.0,0.002]
[1728587689034,2.18096996,59442.0,59441.0,0.002]
[1728587691622,0.85936996,59442.0,59441.0,0.002]
[1728587691826,1.22016996,59442.0,59441.0,0.002]
[1728587692436,1.22016996,59442.0,59441.0,0.0518856]
[1728587693037,0.85936996,59442.0,59441.0,0.0518856]
[1728587693342,1.22016996,59442.0,59441.0,0.002]
[1728587693835,0.85936996,59442.0,59441.0,0.002]
[1728587694039,1.22016996,59442.0,59441.0,0.002]
[1728587694525,0.85936996,59442.0,59441.0,0.0518856]
[1728587694727,1.22016996,59442.0,59441.0,0.002]
[1728587694924,0.71548996,59442.0,59441.0,0.002]
[1728587695327,0.45548996,59442.0,59441.0,0.002]
[1728587695537,0.71548996,59442.0,59441.0,0.05191204]
[1728587696132,0.45548996,59442.0,59441.0,0.05191204]
[1728587696332,0.45548996,59442.0,59441.0,0.002]
[1728587696640,0.084215,59446.0,59445.0,0.084215]
[1728587696840,0.3608,59447.0,59442.0,0.2677]
[1728587697043,0.3608,59447.0,59446.0,0.084215]
[1728587697428,0.084213,59447.0,59446.0,0.084215]
[1728587697644,0.214213,59447.0,59446.0,0.29051016]
[1728587698030,0.214213,59447.0,59446.0,0.16735827]
[1728587698237,0.214213,59447.0,59446.0,0.084215]
[1728587698537,0.214213,59447.0,59446.0,0.085215]
[1728587699837,0.214213,59447.0,59446.0,0.086215]
[1728587700246,0.08421,59450.0,59449.0,0.08421]
[1728587700448,0.44501,59450.0,59449.0,0.06648711]
[1728587700750,0.084219,59443.0,59442.0,0.069]
[1728587700943,0.084219,59443.0,59434.0,0.18400221]
[1728587700944,0.084229,59436.0,59434.0,0.08314327]
[1728587701145,0.084232,59434.0,59433.0,0.08314327]
[1728587701347,0.084232,59434.0,59433.0,0.20661702]
[1728587701648,0.214232,59434.0,59433.0,0.08314327]